Workbook

Sheet Данные
I1: Приложение №1
A2: Перечень актуальных и готовых к реализации невостребованных МТР
A4: Наименование лота | B4: Наименование ОГ | C4: № лота | D4: № позиции | E4: Наименование неликвидных (НЛ) и невостребованных ликвидных (НВЛ) материалов | F4: Ед. изм | G4: Количество | H4: Мин. цена реализации за ед., руб., без НДС | I4: Сумма, руб. без НДС | J4: Место нахождения
A5: Виброизоляторы | B5: ПАО АНК "Башнефть" "Башнефть-Новойл" | C5: 1 | D5: 1 | E5: Виброизолятор ДО39 | F5: ШТ | G5: 18 | H5: 58.8 | I5: =H5*G5 -> 1058.4 | J5: 450063, г. Уфа, ПАО АНК "Башнефть" "Башнефть-Новойл"
A6: Виброизоляторы | B6: ПАО АНК "Башнефть" "Башнефть-Новойл" | C6: 1 | D6: 2 | E6: Виброизолятор ДО39 | F6: ШТ | G6: 24 | H6: 58.8 | I6: 1411.2 | J6: 450063, г. Уфа, ПАО АНК "Башнефть" "Башнефть-Новойл"
A7: Виброизоляторы | B7: ПАО АНК "Башнефть" "Башнефть-Новойл" | C7: 1 | D7: 3 | E7: Виброизолятор ДО-40 | F7: ШТ | G7: 16 | H7: 60.2 | I7: 963.2 | J7: 450063, г. Уфа, ПАО АНК "Башнефть" "Башнефть-Новойл"
A8: Виброизоляторы | B8: ПАО АНК "Башнефть" "Башнефть-Новойл" | C8: 1 | D8: 4 | E8: Виброизолятор ДО-40 | F8: ШТ | G8: 16 | H8: 60.2 | I8: 963.2 | J8: 450063, г. Уфа, ПАО АНК "Башнефть" "Башнефть-Новойл"
A9: Виброизоляторы | B9: ПАО АНК "Башнефть" "Башнефть-Новойл" | C9: 1 | D9: 5 | E9: Виброизолятор ДО-40 | F9: ШТ | G9: 15 | H9: 60.2 | I9: 903 | J9: 450063, г. Уфа, ПАО АНК "Башнефть" "Башнефть-Новойл"
A10: Виброизоляторы | B10: ПАО АНК "Башнефть" "Башнефть-Новойл" | C10: 1 | D10: 6 | E10: Виброизолятор ДО-40 | F10: ШТ | G10: 1 | H10: 60.2 | I10: 60.2 | J10: 450063, г. Уфа, ПАО АНК "Башнефть" "Башнефть-Новойл"
A11: Виброизоляторы | B11: ПАО АНК "Башнефть" "Башнефть-Новойл" | C11: 1 | D11: 7 | E11: Виброизолятор ДО41 | F11: ШТ | G11: 22 | H11: 62.9 | I11: 1383.8 | J11: 450063, г. Уфа, ПАО АНК "Башнефть" "Башнефть-Новойл"
A12: Виброизоляторы | B12: ПАО АНК "Башнефть" "Башнефть-Новойл" | C12: 1 | D12: 8 | E12: Виброизолятор ДО41 | F12: ШТ | G12: 8 | H12: 62.9 | I12: 503.2 | J12: 450063, г. Уфа, ПАО АНК "Башнефть" "Башнефть-Новойл"
A13: Виброизоляторы | B13: ПАО АНК "Башнефть" "Башнефть-Новойл" | C13: 1 | D13: 9 | E13: Виброизолятор ДО-42 | F13: ШТ | G13: 20 | H13: 340.2 | I13: 6804 | J13: 450063, г. Уфа, ПАО АНК "Башнефть" "Башнефть-Новойл"
A14: Выключатели | B14: ПАО АНК "Башнефть" "Башнефть-Новойл" | C14: 2 | D14: 10 | E14: Выкл. авт. ВА 21-29-120010 6.3А | F14: ШТ | G14: 2 | H14: 2299.2 | I14: 4598.4 | J14: 450063, г. Уфа, ПАО АНК "Башнефть" "Башнефть-Новойл"
A15: Выключатели | B15: ПАО АНК "Башнефть" "Башнефть-Новойл" | C15: 2 | D15: 11 | E15: Выключатель авт. ВА61F29-3K 1.6А | F15: ШТ | G15: 6 | H15: 567 | I15: 3402 | J15: 450063, г. Уфа, ПАО АНК "Башнефть" "Башнефть-Новойл"
A16: Выключатели | B16: ПАО АНК "Башнефть" "Башнефть-Новойл" | C16: 2 | D16: 12 | E16: Выключатель ВА 21-29-120010-00У3 1,0А | F16: ШТ | G16: 2 | H16: 918 | I16: 1836 | J16: 450063, г. Уфа, ПАО АНК "Башнефть" "Башнефть-Новойл"
A17: Выключатели | B17: ПАО АНК "Башнефть" "Башнефть-Новойл" | C17: 2 | D17: 13 | E17: Выключатель путевой ВПВ-4Б12 ХЛ1 | F17: ШТ | G17: 1 | H17: 3046.7 | I17: 3046.7 | J17: 450063, г. Уфа, ПАО АНК "Башнефть" "Башнефть-Новойл"
A18: Выключатели | B18: ПАО АНК "Башнефть" "Башнефть-Новойл" | C18: 2 | D18: 14 | E18: Х Выключатель авт. C60N 24068 2P 0.5А | F18: ШТ | G18: 1 | H18: 1770 | I18: 1770 | J18: 450063, г. Уфа, ПАО АНК "Башнефть" "Башнефть-Новойл"
A19: Выключатели | B19: ПАО АНК "Башнефть" "Башнефть-Новойл" | C19: 2 | D19: 15 | E19: Х Выключатель авт. C60N 24068 2P 0.5А | F19: ШТ | G19: 3 | H19: 1800 | I19: 5400 | J19: 450063, г. Уфа, ПАО АНК "Башнефть" "Башнефть-Новойл"
A20: Выключатели | B20: ПАО АНК "Башнефть" "Башнефть-Новойл" | C20: 2 | D20: 16 | E20: Х Выключатель авт. C60N 24068 2P 0.5А | F20: ШТ | G20: 2 | H20: 1850 | I20: 3700 | J20: 450063, г. Уфа, ПАО АНК "Башнефть" "Башнефть-Новойл"
A21: Выключатели | B21: ПАО АНК "Башнефть" "Башнефть-Новойл" | C21: 2 | D21: 17 | E21: Х Выключатель авт. C60N 24068 2P 0.5А | F21: ШТ | G21: 2 | H21: 1770 | I21: 3540 | J21: 450063, г. Уфа, ПАО АНК "Башнефть" "Башнефть-Новойл"
A22: Выключатели | B22: ПАО АНК "Башнефть" "Башнефть-Новойл" | C22: 2 | D22: 18 | E22: Х Выключатель авт. Legrand L/06263 2P10А | F22: ШТ | G22: 1 | H22: 800 | I22: 800 | J22: 450063, г. Уфа, ПАО АНК "Башнефть" "Башнефть-Новойл"
A23: Извещатели | B23: ПАО АНК "Башнефть" "Башнефть-Новойл" | C23: 3 | D23: 19 | E23: Извещатель ИП 103-4/1 А2 ИБ МАК-1 ИБ | F23: ШТ | G23: 50 | H23: 67.3 | I23: 3365 | J23: 450063, г. Уфа, ПАО АНК "Башнефть" "Башнефть-Новойл"
A24: Извещатели | B24: ПАО АНК "Башнефть" "Башнефть-Новойл" | C24: 3 | D24: 20 | E24: Извещатель ИП 103-4/1 А2 ИБ МАК-1 ИБ | F24: ШТ | G24: 51 | H24: 67.3 | I24: 3432.3 | J24: 450063, г. Уфа, ПАО АНК "Башнефть" "Башнефть-Новойл"
A25: Извещатели | B25: ПАО АНК "Башнефть" "Башнефть-Новойл" | C25: 3 | D25: 21 | E25: Извещатель ИП 212-3СУ | F25: ШТ | G25: 29 | H25: 150.4 | I25: 4361.6 | J25: 450063, г. Уфа, ПАО АНК "Башнефть" "Башнефть-Новойл"
A26: Извещатели | B26: ПАО АНК "Башнефть" "Башнефть-Новойл" | C26: 3 | D26: 22 | E26: Извещатель ИП 212-3СУ | F26: ШТ | G26: 80 | H26: 150.4 | I26: 12032 | J26: 450063, г. Уфа, ПАО АНК "Башнефть" "Башнефть-Новойл"
A27: Извещатели | B27: ПАО АНК "Башнефть" "Башнефть-Новойл" | C27: 3 | D27: 23 | E27: Извещатель ИП 212-3СУ | F27: ШТ | G27: 50 | H27: 150.4 | I27: 7520 | J27: 450063, г. Уфа, ПАО АНК "Башнефть" "Башнефть-Новойл"
A28: Извещатели | B28: ПАО АНК "Башнефть" "Башнефть-Новойл" | C28: 3 | D28: 24 | E28: Извещатель ИП101-07е-к2 (КВ12+КВ12) | F28: ШТ | G28: 19 | H28: 4016.9 | I28: 76321.1 | J28: 450063, г. Уфа, ПАО АНК "Башнефть" "Башнефть-Новойл"
A29: Извещатели | B29: ПАО АНК "Башнефть" "Башнефть-Новойл" | C29: 3 | D29: 25 | E29: Извещатель охр. ИО-101-2 | F29: ШТ | G29: 15 | H29: 168 | I29: 2520 | J29: 450063, г. Уфа, ПАО АНК "Башнефть" "Башнефть-Новойл"
A30: Извещатели | B30: ПАО АНК "Башнефть" "Башнефть-Новойл" | C30: 3 | D30: 26 | E30: Извещатель охранный Фантом-30У | F30: ШТ | G30: 8 | H30: 6510 | I30: 52080 | J30: 450063, г. Уфа, ПАО АНК "Башнефть" "Башнефть-Новойл"
A31: Извещатели | B31: ПАО АНК "Башнефть" "Башнефть-Новойл" | C31: 3 | D31: 27 | E31: Извещатель пож. ИП 212-96 | F31: ШТ | G31: 9 | H31: 934.5 | I31: 8410.5 | J31: 450063, г. Уфа, ПАО АНК "Башнефть" "Башнефть-Новойл"
A32: Извещатели | B32: ПАО АНК "Башнефть" "Башнефть-Новойл" | C32: 3 | D32: 28 | E32: Извещатель пож. ИП-103-4/1-ИБ | F32: ШТ | G32: 37 | H32: 91.1 | I32: 3370.7 | J32: 450063, г. Уфа, ПАО АНК "Башнефть" "Башнефть-Новойл"
A33: Извещатели | B33: ПАО АНК "Башнефть" "Башнефть-Новойл" | C33: 3 | D33: 29 | E33: Извещатель пож. ИП-103-4/1-ИБ | F33: ШТ | G33: 60 | H33: 91.1 | I33: 5466 | J33: 450063, г. Уфа, ПАО АНК "Башнефть" "Башнефть-Новойл"
A34: Извещатели | B34: ПАО АНК "Башнефть" "Башнефть-Новойл" | C34: 3 | D34: 30 | E34: Извещатель пож. ИП-103-4/1-ИБ | F34: ШТ | G34: 29 | H34: 91.1 | I34: 2641.9 | J34: 450063, г. Уфа, ПАО АНК "Башнефть" "Башнефть-Новойл"
A35: Извещатели | B35: ПАО АНК "Башнефть" "Башнефть-Новойл" | C35: 3 | D35: 31 | E35: Извещатель пож. ИП-103-4/1-ИБ | F35: ШТ | G35: 1 | H35: 91.1 | I35: 91.1 | J35: 450063, г. Уфа, ПАО АНК "Башнефть" "Башнефть-Новойл"
A36: Извещатели | B36: ПАО АНК "Башнефть" "Башнефть-Новойл" | C36: 3 | D36: 32 | E36: Извещатель пож. ИП-103-4/1-ИБ | F36: ШТ | G36: 40 | H36: 91.1 | I36: 3644 | J36: 450063, г. Уфа, ПАО АНК "Башнефть" "Башнефть-Новойл"
A37: Извещатели | B37: ПАО АНК "Башнефть" "Башнефть-Новойл" | C37: 3 | D37: 33 | E37: Извещатель пож. ИП-103-4/1-ИБ | F37: ШТ | G37: 30 | H37: 91.1 | I37: 2733 | J37: 450063, г. Уфа, ПАО АНК "Башнефть" "Башнефть-Новойл"
A38: Извещатели | B38: ПАО АНК "Башнефть" "Башнефть-Новойл" | C38: 3 | D38: 34 | E38: Извещатель пож. ИП-103-5-А3 | F38: ШТ | G38: 20 | H38: 40.7 | I38: 814 | J38: 450063, г. Уфа, ПАО АНК "Башнефть" "Башнефть-Новойл"
A39: Извещатели | B39: ПАО АНК "Башнефть" "Башнефть-Новойл" | C39: 3 | D39: 35 | E39: Извещатель пож. ИП-114-5-А2 | F39: ШТ | G39: 10 | H39: 60.7 | I39: 607 | J39: 450063, г. Уфа, ПАО АНК "Башнефть" "Башнефть-Новойл"
A40: Извещатели | B40: ПАО АНК "Башнефть" "Башнефть-Новойл" | C40: 3 | D40: 36 | E40: Извещатель пож. ИП-212-41М | F40: ШТ | G40: 6 | H40: 105.4 | I40: 632.4 | J40: 450063, г. Уфа, ПАО АНК "Башнефть" "Башнефть-Новойл"
A41: Извещатели | B41: ПАО АНК "Башнефть" "Башнефть-Новойл" | C41: 3 | D41: 37 | E41: Извещатель пожарный ИП-103-5/1-А3 | F41: ШТ | G41: 50 | H41: 50.4 | I41: 2520 | J41: 450063, г. Уфа, ПАО АНК "Башнефть" "Башнефть-Новойл"
A42: Извещатели | B42: ПАО АНК "Башнефть" "Башнефть-Новойл" | C42: 3 | D42: 38 | E42: Извещатель пожарный ИП-103-5/1-А3 | F42: ШТ | G42: 30 | H42: 50.4 | I42: 1512 | J42: 450063, г. Уфа, ПАО АНК "Башнефть" "Башнефть-Новойл"
A43: Извещатели | B43: ПАО АНК "Башнефть" "Башнефть-Новойл" | C43: 3 | D43: 39 | E43: Извещатель пожарный ИП-103-5/1-А3 | F43: ШТ | G43: 99 | H43: 50.4 | I43: 4989.6 | J43: 450063, г. Уфа, ПАО АНК "Башнефть" "Башнефть-Новойл"
A44: Извещатели | B44: ПАО АНК "Башнефть" "Башнефть-Новойл" | C44: 3 | D44: 40 | E44: Извещатель пожарный ИП-103-5/1-А3 | F44: ШТ | G44: 20 | H44: 50.4 | I44: 1008 | J44: 450063, г. Уфа, ПАО АНК "Башнефть" "Башнефть-Новойл"
A45: Извещатели | B45: ПАО АНК "Башнефть" "Башнефть-Новойл" | C45: 3 | D45: 41 | E45: Оповещатель свет. Сова-Б Пена уходи | F45: ШТ | G45: 6 | H45: 6629.8 | I45: 39778.8 | J45: 450063, г. Уфа, ПАО АНК "Башнефть" "Башнефть-Новойл"
A46: Изолятор | B46: ПАО АНК "Башнефть" "Башнефть-Новойл" | C46: 4 | D46: 42 | E46: Изолятор 5672.E.27.00.00 | F46: ШТ | G46: 1 | H46: 145022.7 | I46: 145022.7 | J46: 450063, г. Уфа, ПАО АНК "Башнефть" "Башнефть-Новойл"
A47: Изолятор | B47: ПАО АНК "Башнефть" "Башнефть-Новойл" | C47: 4 | D47: 43 | E47: Изолятор 5672.E.27.00.00 | F47: ШТ | G47: 1 | H47: 145022.7 | I47: 145022.7 | J47: 450063, г. Уфа, ПАО АНК "Башнефть" "Башнефть-Новойл"
A48: Изолятор | B48: ПАО АНК "Башнефть" "Башнефть-Новойл" | C48: 4 | D48: 44 | E48: Изолятор CPK-1-050 | F48: ШТ | G48: 10 | H48: 3301.4 | I48: 33014 | J48: 450063, г. Уфа, ПАО АНК "Башнефть" "Башнефть-Новойл"
A49: Изолятор | B49: ПАО АНК "Башнефть" "Башнефть-Новойл" | C49: 4 | D49: 45 | E49: Изолятор PPC Insulators 3225821048646 | F49: ШТ | G49: 2 | H49: 61740.8 | I49: 123481.6 | J49: 450063, г. Уфа, ПАО АНК "Башнефть" "Башнефть-Новойл"
A50: Изолятор | B50: ПАО АНК "Башнефть" "Башнефть-Новойл" | C50: 4 | D50: 46 | E50: Изолятор PPC Insulators 3225821048646 | F50: ШТ | G50: 2 | H50: 61740.8 | I50: 123481.6 | J50: 450063, г. Уфа, ПАО АНК "Башнефть" "Башнефть-Новойл"
A51: Изолятор | B51: ПАО АНК "Башнефть" "Башнефть-Новойл" | C51: 4 | D51: 47 | E51: Изолятор опорный ИО-6-3,75 II У3 | F51: ШТ | G51: 18 | H51: 79.8 | I51: 1436.4 | J51: 450063, г. Уфа, ПАО АНК "Башнефть" "Башнефть-Новойл"
A52: Изолятор | B52: ПАО АНК "Башнефть" "Башнефть-Новойл" | C52: 4 | D52: 48 | E52: Изолятор торцевой ABB 1SNA103062R2100 | F52: ШТ | G52: 1 | H52: 7.7 | I52: 7.7 | J52: 450063, г. Уфа, ПАО АНК "Башнефть" "Башнефть-Новойл"
A53: Изолятор | B53: ПАО АНК "Башнефть" "Башнефть-Новойл" | C53: 4 | D53: 49 | E53: Изолятор торцевой ABB 1SNA118368R1600 | F53: ШТ | G53: 3 | H53: 16.1 | I53: 48.3 | J53: 450063, г. Уфа, ПАО АНК "Башнефть" "Башнефть-Новойл"
A54: Кабели для промышленной автоматизации и систем управления | B54: ПАО АНК "Башнефть" "Башнефть-Новойл" | C54: 5 | D54: 50 | E54: Кабель КГПЭфУ 1х2х1,2 | F54: М | G54: 1807 | H54: 135.6 | I54: 245029.2 | J54: 450063, г. Уфа, ПАО АНК "Башнефть" "Башнефть-Новойл"
A55: Кабели для промышленной автоматизации и систем управления | B55: ПАО АНК "Башнефть" "Башнефть-Новойл" | C55: 5 | D55: 51 | E55: Кабель КИПвЭВБВ 1х2х0,78 | F55: М | G55: 37.8 | H55: 114 | I55: 4309.2 | J55: 450063, г. Уфа, ПАО АНК "Башнефть" "Башнефть-Новойл"
A56: Кабели для промышленной автоматизации и систем управления | B56: ПАО АНК "Башнефть" "Башнефть-Новойл" | C56: 5 | D56: 52 | E56: Кабель КИПЭВБВ 2х2х0,6 | F56: М | G56: 120 | H56: 140 | I56: 16800 | J56: 450063, г. Уфа, ПАО АНК "Башнефть" "Башнефть-Новойл"
A57: Кабели для промышленной автоматизации и систем управления | B57: ПАО АНК "Башнефть" "Башнефть-Новойл" | C57: 5 | D57: 53 | E57: Кабель КИПЭВнг(А)-LS 1х2х0,60 | F57: М | G57: 350 | H57: 54.6 | I57: 19110 | J57: 450063, г. Уфа, ПАО АНК "Башнефть" "Башнефть-Новойл"
A58: Кабели для промышленной автоматизации и систем управления | B58: ПАО АНК "Башнефть" "Башнефть-Новойл" | C58: 5 | D58: 54 | E58: Кабель КУВШнг(А)-LS 10х2х1 | F58: М | G58: 461 | H58: 172.1 | I58: 79338.1 | J58: 450063, г. Уфа, ПАО АНК "Башнефть" "Башнефть-Новойл"
A59: Кабели для промышленной автоматизации и систем управления | B59: ПАО АНК "Башнефть" "Башнефть-Новойл" | C59: 5 | D59: 55 | E59: Кабель КуГВВ 3х4 | F59: М | G59: 50 | H59: 29.3 | I59: 1465 | J59: 450063, г. Уфа, ПАО АНК "Башнефть" "Башнефть-Новойл"
A60: Кабели для промышленной автоматизации и систем управления | B60: ПАО АНК "Башнефть" "Башнефть-Новойл" | C60: 5 | D60: 56 | E60: Кабель КУИНнг-FRHF 2х2х0,5 | F60: М | G60: 148 | H60: 404.8 | I60: 59910.4 | J60: 450063, г. Уфа, ПАО АНК "Башнефть" "Башнефть-Новойл"
A61: Кабели для промышленной автоматизации и систем управления | B61: ПАО АНК "Башнефть" "Башнефть-Новойл" | C61: 5 | D61: 57 | E61: Кабель КУИНнг-FRHF 2х2х0,5 | F61: М | G61: 50 | H61: 399.1 | I61: 19955 | J61: 450063, г. Уфа, ПАО АНК "Башнефть" "Башнефть-Новойл"
A62: Кабели для промышленной автоматизации и систем управления | B62: ПАО АНК "Башнефть" "Башнефть-Новойл" | C62: 5 | D62: 58 | E62: Кабель КУИНнг-FRHF 2х2х1 | F62: М | G62: 20 | H62: 538.4 | I62: 10768 | J62: 450063, г. Уфа, ПАО АНК "Башнефть" "Башнефть-Новойл"
A63: Кабели для промышленной автоматизации и систем управления | B63: ПАО АНК "Башнефть" "Башнефть-Новойл" | C63: 5 | D63: 59 | E63: Кабель КУИНнг-HF ПК 4х2,5 | F63: М | G63: 31 | H63: 369.5 | I63: 11454.5 | J63: 450063, г. Уфа, ПАО АНК "Башнефть" "Башнефть-Новойл"
A64: Кабели для промышленной автоматизации и систем управления | B64: ПАО АНК "Башнефть" "Башнефть-Новойл" | C64: 5 | D64: 60 | E64: Кабель КУИНнг-LS 10х1,5 ВК | F64: М | G64: 10 | H64: 825.3 | I64: 8253 | J64: 450063, г. Уфа, ПАО АНК "Башнефть" "Башнефть-Новойл"
A65: Кабели для систем пожарной и охранной сигнализации | B65: ПАО АНК "Башнефть" "Башнефть-Новойл" | C65: 6 | D65: 61 | E65: Кабель Exzhellent DO2Dt 1х2х1 | F65: М | G65: 9131 | H65: 24.1 | I65: 220057.1 | J65: 450063, г. Уфа, ПАО АНК "Башнефть" "Башнефть-Новойл"
A66: Кабели для систем пожарной и охранной сигнализации | B66: ПАО АНК "Башнефть" "Башнефть-Новойл" | C66: 6 | D66: 62 | E66: Кабель Exzhellent DO2Dt 1х2х1.5 | F66: М | G66: 10 | H66: 74.3 | I66: 743 | J66: 450063, г. Уфа, ПАО АНК "Башнефть" "Башнефть-Новойл"
A67: Кабели для систем пожарной и охранной сигнализации | B67: ПАО АНК "Башнефть" "Башнефть-Новойл" | C67: 6 | D67: 63 | E67: Кабель Exzhellent DO2Dt 1х2х2.5 | F67: М | G67: 30 | H67: 94.6 | I67: 2838 | J67: 450063, г. Уфа, ПАО АНК "Башнефть" "Башнефть-Новойл"
A68: Кабели для систем пожарной и охранной сигнализации | B68: ПАО АНК "Башнефть" "Башнефть-Новойл" | C68: 6 | D68: 64 | E68: Кабель Exzhellent DO2Dt-M 14х1 | F68: М | G68: 1297 | H68: 170.6 | I68: 221268.2 | J68: 450063, г. Уфа, ПАО АНК "Башнефть" "Башнефть-Новойл"
A69: Кабели для систем пожарной и охранной сигнализации | B69: ПАО АНК "Башнефть" "Башнефть-Новойл" | C69: 6 | D69: 65 | E69: Кабель Exzhellent DO2Dt-M 4х1 | F69: М | G69: 860 | H69: 67.1 | I69: =H69*G69 -> 57706 | J69: 450063, г. Уфа, ПАО АНК "Башнефть" "Башнефть-Новойл"
A70: Кабели для систем пожарной и охранной сигнализации | B70: ПАО АНК "Башнефть" "Башнефть-Новойл" | C70: 6 | D70: 66 | E70: Кабель Exzhellent RZ1FZ1-K 14х1.5 | F70: М | G70: 150 | H70: 89.8 | I70: 13470 | J70: 450063, г. Уфа, ПАО АНК "Башнефть" "Башнефть-Новойл"
A71: Кабели для систем пожарной и охранной сигнализации | B71: ПАО АНК "Башнефть" "Башнефть-Новойл" | C71: 6 | D71: 67 | E71: Кабель КПСВЭВнг(А)-LS 2х2х0,5 | F71: М | G71: 12 | H71: 15.2 | I71: 182.4 | J71: 450063, г. Уфа, ПАО АНК "Башнефть" "Башнефть-Новойл"
A72: Кабели для систем пожарной и охранной сигнализации | B72: ПАО АНК "Башнефть" "Башнефть-Новойл" | C72: 6 | D72: 68 | E72: Кабель КПСнг(А)-FRLS 2х2х0,50 | F72: М | G72: 34 | H72: 27.2 | I72: 924.8 | J72: 450063, г. Уфа, ПАО АНК "Башнефть" "Башнефть-Новойл"
A73: Кабели для систем пожарной и охранной сигнализации | B73: ПАО АНК "Башнефть" "Башнефть-Новойл" | C73: 6 | D73: 69 | E73: Кабель КПСЭнг(А)-FRLS 1х2х0,5 | F73: М | G73: 95 | H73: 17.7 | I73: 1681.5 | J73: 450063, г. Уфа, ПАО АНК "Башнефть" "Башнефть-Новойл"
A74: Кабели для систем пожарной и охранной сигнализации | B74: ПАО АНК "Башнефть" "Башнефть-Новойл" | C74: 6 | D74: 70 | E74: Кабель КСРЭВнг(А)-FRLS 1х2х0,50 | F74: М | G74: 928 | H74: 7.3 | I74: 6774.4 | J74: 450063, г. Уфа, ПАО АНК "Башнефть" "Башнефть-Новойл"
A75: Кабели для систем пожарной и охранной сигнализации | B75: ПАО АНК "Башнефть" "Башнефть-Новойл" | C75: 6 | D75: 71 | E75: Кабель КСРЭВнг(А)-FRLS 1х2х1 | F75: М | G75: 22 | H75: 73.9 | I75: 1625.8 | J75: 450063, г. Уфа, ПАО АНК "Башнефть" "Башнефть-Новойл"
A76: Кабели для систем пожарной и охранной сигнализации | B76: ПАО АНК "Башнефть" "Башнефть-Новойл" | C76: 6 | D76: 72 | E76: Кабель сигнальный Yokogawa KS10-10 A | F76: ШТ | G76: 3 | H76: 3343.1 | I76: 10029.3 | J76: 450063, г. Уфа, ПАО АНК "Башнефть" "Башнефть-Новойл"
A77: Кабели для телефонии и передачи данных | B77: ПАО АНК "Башнефть" "Башнефть-Новойл" | C77: 7 | D77: 73 | E77: Кабель Belden 3076F 0061000 | F77: М | G77: 115 | H77: 70.3 | I77: 8084.5 | J77: 450063, г. Уфа, ПАО АНК "Башнефть" "Башнефть-Новойл"
A78: Кабели для телефонии и передачи данных | B78: ПАО АНК "Башнефть" "Башнефть-Новойл" | C78: 7 | D78: 74 | E78: Кабель Belden 3076F 0061000 | F78: М | G78: 15865 | H78: 51.6 | I78: 818634 | J78: 450063, г. Уфа, ПАО АНК "Башнефть" "Башнефть-Новойл"
A79: Кабели для телефонии и передачи данных | B79: ПАО АНК "Башнефть" "Башнефть-Новойл" | C79: 7 | D79: 75 | E79: Кабель Belden 3076F 0061000 | F79: М | G79: 3390 | H79: 72.1 | I79: 244419 | J79: 450063, г. Уфа, ПАО АНК "Башнефть" "Башнефть-Новойл"
A80: Кабели для телефонии и передачи данных | B80: ПАО АНК "Башнефть" "Башнефть-Новойл" | C80: 7 | D80: 76 | E80: Кабель Belden 3076F 0061000 | F80: М | G80: 3540 | H80: 71.4 | I80: 252756 | J80: 450063, г. Уфа, ПАО АНК "Башнефть" "Башнефть-Новойл"
A81: Кабели для телефонии и передачи данных | B81: ПАО АНК "Башнефть" "Башнефть-Новойл" | C81: 7 | D81: 77 | E81: Кабель Belden 9841 | F81: М | G81: 9610 | H81: 238.1 | I81: 2288141 | J81: 450063, г. Уфа, ПАО АНК "Башнефть" "Башнефть-Новойл"
A82: Кабели для телефонии и передачи данных | B82: ПАО АНК "Башнефть" "Башнефть-Новойл" | C82: 7 | D82: 78 | E82: Кабель Belden 9842 | F82: М | G82: 21 | H82: 343.3 | I82: 7209.3 | J82: 450063, г. Уфа, ПАО АНК "Башнефть" "Башнефть-Новойл"
A83: Кабели для телефонии и передачи данных | B83: ПАО АНК "Башнефть" "Башнефть-Новойл" | C83: 7 | D83: 79 | E83: Кабель Belden 9842 | F83: М | G83: 40 | H83: 356.2 | I83: 14248 | J83: 450063, г. Уфа, ПАО АНК "Башнефть" "Башнефть-Новойл"
A84: Кабели для телефонии и передачи данных | B84: ПАО АНК "Башнефть" "Башнефть-Новойл" | C84: 7 | D84: 80 | E84: Кабель Draka NOMAK 8x2x0.5+0.5 L403325 | F84: М | G84: 421 | H84: 88 | I84: 37048 | J84: 450063, г. Уфа, ПАО АНК "Башнефть" "Башнефть-Новойл"
A85: Кабели для телефонии и передачи данных | B85: ПАО АНК "Башнефть" "Башнефть-Новойл" | C85: 7 | D85: 81 | E85: Кабель Draka NOMAK 8x2x0.5+0.5 L403325 | F85: М | G85: 160 | H85: 79.8 | I85: 12768 | J85: 450063, г. Уфа, ПАО АНК "Башнефть" "Башнефть-Новойл"
A86: Кабели для телефонии и передачи данных | B86: ПАО АНК "Башнефть" "Башнефть-Новойл" | C86: 7 | D86: 82 | E86: Кабель Draka NOMAK 8x2x0.5+0.5 L403325 | F86: М | G86: 12 | H86: 81.7 | I86: 980.4 | J86: 450063, г. Уфа, ПАО АНК "Башнефть" "Башнефть-Новойл"
A87: Кабели для телефонии и передачи данных | B87: ПАО АНК "Башнефть" "Башнефть-Новойл" | C87: 7 | D87: 83 | E87: Кабель Draka NOMAK 8x2x0.5+0.5 L403325 | F87: М | G87: 254 | H87: 88 | I87: 22352 | J87: 450063, г. Уфа, ПАО АНК "Башнефть" "Башнефть-Новойл"
A88: Кабели для телефонии и передачи данных | B88: ПАО АНК "Башнефть" "Башнефть-Новойл" | C88: 7 | D88: 84 | E88: Кабель Draka NOMAK 8x2x0.5+0.5 L403325 | F88: М | G88: 700 | H88: 82.8 | I88: 57960 | J88: 450063, г. Уфа, ПАО АНК "Башнефть" "Башнефть-Новойл"
A89: Кабели для телефонии и передачи данных | B89: ПАО АНК "Башнефть" "Башнефть-Новойл" | C89: 7 | D89: 85 | E89: Кабель Draka NOMAK 8x2x0.5+0.5 L403325 | F89: М | G89: 50 | H89: 88 | I89: 4400 | J89: 450063, г. Уфа, ПАО АНК "Башнефть" "Башнефть-Новойл"
A90: Кабели для телефонии и передачи данных | B90: ПАО АНК "Башнефть" "Башнефть-Новойл" | C90: 7 | D90: 86 | E90: Кабель NOMAK 12х2х0,5 1005543-01000DX | F90: М | G90: 85 | H90: 134 | I90: 11390 | J90: 450063, г. Уфа, ПАО АНК "Башнефть" "Башнефть-Новойл"
A91: Кабели для телефонии и передачи данных | B91: ПАО АНК "Башнефть" "Башнефть-Новойл" | C91: 7 | D91: 87 | E91: Кабель NOMAK 24х2х0,5 1005544-01000DX | F91: М | G91: 327 | H91: 214.1 | I91: 70010.7 | J91: 450063, г. Уфа, ПАО АНК "Башнефть" "Башнефть-Новойл"
A92: Кабели для телефонии и передачи данных | B92: ПАО АНК "Башнефть" "Башнефть-Новойл" | C92: 7 | D92: 88 | E92: Кабель NOMAK 24х2х0,5 1005544-01000DX | F92: М | G92: 500 | H92: 208.5 | I92: 104250 | J92: 450063, г. Уфа, ПАО АНК "Башнефть" "Башнефть-Новойл"
A93: Кабели для телефонии и передачи данных | B93: ПАО АНК "Башнефть" "Башнефть-Новойл" | C93: 7 | D93: 89 | E93: Кабель NOMAK 24х2х0,5 1005544-01000DX | F93: М | G93: 258 | H93: 214.1 | I93: 55237.8 | J93: 450063, г. Уфа, ПАО АНК "Башнефть" "Башнефть-Новойл"
A94: Кабели для телефонии и передачи данных | B94: ПАО АНК "Башнефть" "Башнефть-Новойл" | C94: 7 | D94: 90 | E94: Кабель NOMAK 24х2х0,5 1005544-01000DX | F94: М | G94: 445 | H94: 214.1 | I94: 95274.5 | J94: 450063, г. Уфа, ПАО АНК "Башнефть" "Башнефть-Новойл"
A95: Кабели термопарные | B95: ПАО АНК "Башнефть" "Башнефть-Новойл" | C95: 8 | D95: 91 | E95: Кабель термоэлектродный КМТВ-М 8х1,5 | F95: М | G95: 160 | H95: 132.4 | I95: 21184 | J95: 450063, г. Уфа, ПАО АНК "Башнефть" "Башнефть-Новойл"
A96: Кабели термопарные | B96: ПАО АНК "Башнефть" "Башнефть-Новойл" | C96: 8 | D96: 92 | E96: Кабель термоэлектродный КМТВ-М 8х1,5 | F96: М | G96: 619 | H96: 208.4 | I96: 128999.6 | J96: 450063, г. Уфа, ПАО АНК "Башнефть" "Башнефть-Новойл"
A97: Кабели термопарные | B97: ПАО АНК "Башнефть" "Башнефть-Новойл" | C97: 8 | D97: 93 | E97: Кабель термоэлектродный КМТВЭВ-ХА 24х1,5 | F97: М | G97: 35 | H97: 737.3 | I97: 25805.5 | J97: 450063, г. Уфа, ПАО АНК "Башнефть" "Башнефть-Новойл"
A98: Кабели термопарные | B98: ПАО АНК "Башнефть" "Башнефть-Новойл" | C98: 8 | D98: 94 | E98: Кабель термоэлектродный КМТВЭВ-ХА 24х1,5 | F98: М | G98: 150 | H98: 737.3 | I98: 110595 | J98: 450063, г. Уфа, ПАО АНК "Башнефть" "Башнефть-Новойл"
A99: Кабель и провод термоэлектродный | B99: ПАО АНК "Башнефть" "Башнефть-Новойл" | C99: 9 | D99: 95 | E99: Кабель КМТВ-М 13х1+13х1,5 | F99: М | G99: 1126 | H99: 308.7 | I99: 347596.2 | J99: 450063, г. Уфа, ПАО АНК "Башнефть" "Башнефть-Новойл"
A100: Кабель и провод термоэлектродный | B100: ПАО АНК "Башнефть" "Башнефть-Новойл" | C100: 9 | D100: 96 | E100: Кабель КМТВ-М 13х1+13х1,5 | F100: М | G100: 821 | H100: 308.7 | I100: 253442.7 | J100: 450063, г. Уфа, ПАО АНК "Башнефть" "Башнефть-Новойл"
A101: Кабель и провод термоэлектродный | B101: ПАО АНК "Башнефть" "Башнефть-Новойл" | C101: 9 | D101: 97 | E101: Кабель КМТВ-М 13х1+13х1,5 | F101: М | G101: 1167 | H101: 308.7 | I101: 360252.9 | J101: 450063, г. Уфа, ПАО АНК "Башнефть" "Башнефть-Новойл"
A102: Кабель и провод термоэлектродный | B102: ПАО АНК "Башнефть" "Башнефть-Новойл" | C102: 9 | D102: 98 | E102: Кабель КМТВ-М 14х1,5 | F102: М | G102: 255 | H102: 173.6 | I102: 44268 | J102: 450063, г. Уфа, ПАО АНК "Башнефть" "Башнефть-Новойл"
A103: Кабель и провод термоэлектродный | B103: ПАО АНК "Башнефть" "Башнефть-Новойл" | C103: 9 | D103: 99 | E103: Кабель КМТВ-М 18х1.5 | F103: М | G103: 120 | H103: 265.5 | I103: 31860 | J103: 450063, г. Уфа, ПАО АНК "Башнефть" "Башнефть-Новойл"
A104: Кабель и провод термоэлектродный | B104: ПАО АНК "Башнефть" "Башнефть-Новойл" | C104: 9 | D104: 100 | E104: Кабель КМТВ-М 26х1,5 | F104: М | G104: 150 | H104: 383 | I104: 57450 | J104: 450063, г. Уфа, ПАО АНК "Башнефть" "Башнефть-Новойл"
A105: Кабель и провод термоэлектродный | B105: ПАО АНК "Башнефть" "Башнефть-Новойл" | C105: 9 | D105: 101 | E105: Кабель КМТВ-М 4х1+4х1,5 | F105: М | G105: 510 | H105: 117.3 | I105: 59823 | J105: 450063, г. Уфа, ПАО АНК "Башнефть" "Башнефть-Новойл"
A106: Кабель и провод термоэлектродный | B106: ПАО АНК "Башнефть" "Башнефть-Новойл" | C106: 9 | D106: 102 | E106: Кабель КМТВ-М 4х1+4х1,5 | F106: М | G106: 200 | H106: 97.1 | I106: 19420 | J106: 450063, г. Уфа, ПАО АНК "Башнефть" "Башнефть-Новойл"
A107: Кабель и провод термоэлектродный | B107: ПАО АНК "Башнефть" "Башнефть-Новойл" | C107: 9 | D107: 103 | E107: Кабель КМТВ-М 4х1+4х1,5 | F107: М | G107: 326 | H107: 117.3 | I107: 38239.8 | J107: 450063, г. Уфа, ПАО АНК "Башнефть" "Башнефть-Новойл"
A108: Кабель и провод термоэлектродный | B108: ПАО АНК "Башнефть" "Башнефть-Новойл" | C108: 9 | D108: 104 | E108: Кабель КМТВ-М 4х1+4х2,5 | F108: М | G108: 100 | H108: 169.1 | I108: 16910 | J108: 450063, г. Уфа, ПАО АНК "Башнефть" "Башнефть-Новойл"
A109: Кабель и провод термоэлектродный | B109: ПАО АНК "Башнефть" "Башнефть-Новойл" | C109: 9 | D109: 105 | E109: Кабель КМТВ-М 7х1+7х1,5 | F109: М | G109: 2458 | H109: 213 | I109: 523554 | J109: 450063, г. Уфа, ПАО АНК "Башнефть" "Башнефть-Новойл"
A110: Кабель и провод термоэлектродный | B110: ПАО АНК "Башнефть" "Башнефть-Новойл" | C110: 9 | D110: 106 | E110: Кабель КМТВ-М 7х1+7х1,5 | F110: М | G110: 2875 | H110: 201.9 | I110: 580462.5 | J110: 450063, г. Уфа, ПАО АНК "Башнефть" "Башнефть-Новойл"
A111: Кабель и провод термоэлектродный | B111: ПАО АНК "Башнефть" "Башнефть-Новойл" | C111: 9 | D111: 107 | E111: Кабель КМТВ-М 7х1+7х1,5 | F111: М | G111: 1125 | H111: 213 | I111: 239625 | J111: 450063, г. Уфа, ПАО АНК "Башнефть" "Башнефть-Новойл"
A112: Кабель и провод термоэлектродный | B112: ПАО АНК "Башнефть" "Башнефть-Новойл" | C112: 9 | D112: 108 | E112: Кабель КМТВЭВ-М 13х1+13х1,5 | F112: М | G112: 417 | H112: 300.3 | I112: 125225.1 | J112: 450063, г. Уфа, ПАО АНК "Башнефть" "Башнефть-Новойл"
A113: Кабель и провод термоэлектродный | B113: ПАО АНК "Башнефть" "Башнефть-Новойл" | C113: 9 | D113: 109 | E113: Кабель КМТВЭВ-М 7х1,0+7х1,5 | F113: М | G113: 40 | H113: 170.5 | I113: 6820 | J113: 450063, г. Уфа, ПАО АНК "Башнефть" "Башнефть-Новойл"
A114: Кабель и провод термоэлектродный | B114: ПАО АНК "Башнефть" "Башнефть-Новойл" | C114: 9 | D114: 110 | E114: Кабель КМЭЛ-1-ВЭфВнг(А)-LS 7х(2х1) | F114: М | G114: 109 | H114: 195.7 | I114: 21331.3 | J114: 450063, г. Уфа, ПАО АНК "Башнефть" "Башнефть-Новойл"
A115: Кабель и провод термоэлектродный | B115: ПАО АНК "Башнефть" "Башнефть-Новойл" | C115: 9 | D115: 111 | E115: Кабель КМЭЛ-ВЭВзнг(А)-LS 10х2х1,5 | F115: М | G115: 177 | H115: 402.3 | I115: 71207.1 | J115: 450063, г. Уфа, ПАО АНК "Башнефть" "Башнефть-Новойл"
A116: Кабель и провод термоэлектродный | B116: ПАО АНК "Башнефть" "Башнефть-Новойл" | C116: 9 | D116: 112 | E116: Кабель КМЭЛ-ВЭВзнг(А)-LS 12х3х1 | F116: М | G116: 1155 | H116: 497.1 | I116: 574150.5 | J116: 450063, г. Уфа, ПАО АНК "Башнефть" "Башнефть-Новойл"
A117: Кабель и провод термоэлектродный | B117: ПАО АНК "Башнефть" "Башнефть-Новойл" | C117: 9 | D117: 113 | E117: Кабель КМЭЛ-ВЭВзнг(А)-LS 14х2х1,5 | F117: М | G117: 793 | H117: 540 | I117: 428220 | J117: 450063, г. Уфа, ПАО АНК "Башнефть" "Башнефть-Новойл"
A118: Кабель и провод термоэлектродный | B118: ПАО АНК "Башнефть" "Башнефть-Новойл" | C118: 9 | D118: 114 | E118: Кабель КМЭЛ-ВЭВзнг(А)-LS 14х2х1,5 | F118: М | G118: 150 | H118: 540 | I118: 81000 | J118: 450063, г. Уфа, ПАО АНК "Башнефть" "Башнефть-Новойл"
A119: Кабель и провод термоэлектродный | B119: ПАО АНК "Башнефть" "Башнефть-Новойл" | C119: 9 | D119: 115 | E119: Кабель КМЭЛ-МВЭВзнг(А)-LS 7х2х1,5 | F119: М | G119: 90 | H119: 273.9 | I119: 24651 | J119: 450063, г. Уфа, ПАО АНК "Башнефть" "Башнефть-Новойл"
A120: Кабель контрольный с медной жилой | B120: ПАО АНК "Башнефть" "Башнефть-Новойл" | C120: 10 | D120: 116 | E120: Кабель КВБбШвнг(А)-LS 4х1 | F120: М | G120: 65 | H120: 32 | I120: 2080 | J120: 450063, г. Уфа, ПАО АНК "Башнефть" "Башнефть-Новойл"
A121: Кабель контрольный с медной жилой | B121: ПАО АНК "Башнефть" "Башнефть-Новойл" | C121: 10 | D121: 117 | E121: Кабель контрольный КВВГЭ 14х1,0 | F121: М | G121: 30 | H121: 60.9 | I121: 1827 | J121: 450063, г. Уфа, ПАО АНК "Башнефть" "Башнефть-Новойл"
A122: Кабель контрольный с медной жилой | B122: ПАО АНК "Башнефть" "Башнефть-Новойл" | C122: 10 | D122: 118 | E122: Кабель контрольный КВВГЭ 14х1,0 | F122: М | G122: 228 | H122: 60.9 | I122: 13885.2 | J122: 450063, г. Уфа, ПАО АНК "Башнефть" "Башнефть-Новойл"
A123: Кабель силовой с алюминиевой жилой | B123: ПАО АНК "Башнефть" "Башнефть-Новойл" | C123: 11 | D123: 119 | E123: Кабель АВБбШв 4х240-1 | F123: М | G123: 240 | H123: 495.6 | I123: 118944 | J123: 450063, г. Уфа, ПАО АНК "Башнефть" "Башнефть-Новойл"
A124: Кабель силовой с алюминиевой жилой | B124: ПАО АНК "Башнефть" "Башнефть-Новойл" | C124: 11 | D124: 120 | E124: Кабель АВБбШвнг-LS 4х50-0,66 | F124: М | G124: 20 | H124: 197.6 | I124: 3952 | J124: 450063, г. Уфа, ПАО АНК "Башнефть" "Башнефть-Новойл"
A125: Кабель силовой с алюминиевой жилой | B125: ПАО АНК "Башнефть" "Башнефть-Новойл" | C125: 11 | D125: 121 | E125: Кабель АВБШвнг(A)-LS 3х150ос-6 | F125: М | G125: 308 | H125: 348.6 | I125: 107368.8 | J125: 450063, г. Уфа, ПАО АНК "Башнефть" "Башнефть-Новойл"
A126: Кабель силовой с алюминиевой жилой | B126: ПАО АНК "Башнефть" "Башнефть-Новойл" | C126: 11 | D126: 122 | E126: Кабель АВВГ 2х25-0,66 | F126: М | G126: 230 | H126: 49.9 | I126: 11477 | J126: 450063, г. Уфа, ПАО АНК "Башнефть" "Башнефть-Новойл"
A127: Кабель силовой с алюминиевой жилой | B127: ПАО АНК "Башнефть" "Башнефть-Новойл" | C127: 11 | D127: 123 | E127: Кабель АВВГ 4х185(ож)-1 | F127: М | G127: 194 | H127: 290.3 | I127: 56318.2 | J127: 450063, г. Уфа, ПАО АНК "Башнефть" "Башнефть-Новойл"
A128: Кабель силовой с алюминиевой жилой | B128: ПАО АНК "Башнефть" "Башнефть-Новойл" | C128: 11 | D128: 124 | E128: Кабель АВВГ 4х2,5-0,66 | F128: М | G128: 55 | H128: 15.2 | I128: 836 | J128: 450063, г. Уфа, ПАО АНК "Башнефть" "Башнефть-Новойл"
A129: Кабель силовой с алюминиевой жилой | B129: ПАО АНК "Башнефть" "Башнефть-Новойл" | C129: 11 | D129: 125 | E129: Кабель АВВГ 4х4-0,66 | F129: М | G129: 33 | H129: 18.2 | I129: 600.6 | J129: 450063, г. Уфа, ПАО АНК "Башнефть" "Башнефть-Новойл"
A130: Кабель силовой с алюминиевой жилой | B130: ПАО АНК "Башнефть" "Башнефть-Новойл" | C130: 11 | D130: 126 | E130: Кабель АВВГ 4х4-0,66 | F130: М | G130: 90 | H130: 18.2 | I130: 1638 | J130: 450063, г. Уфа, ПАО АНК "Башнефть" "Башнефть-Новойл"
A131: Кабель силовой с алюминиевой жилой | B131: ПАО АНК "Башнефть" "Башнефть-Новойл" | C131: 11 | D131: 127 | E131: Кабель АВВГ 4х6-0.66 | F131: М | G131: 38 | H131: 26.3 | I131: 999.4 | J131: 450063, г. Уфа, ПАО АНК "Башнефть" "Башнефть-Новойл"
A132: Кабель силовой с алюминиевой жилой | B132: ПАО АНК "Башнефть" "Башнефть-Новойл" | C132: 11 | D132: 128 | E132: Кабель АВВГзнг 3х2.5-0.66 | F132: М | G132: 45 | H132: 12.2 | I132: 549 | J132: 450063, г. Уфа, ПАО АНК "Башнефть" "Башнефть-Новойл"
A133: Кабель силовой с алюминиевой жилой | B133: ПАО АНК "Башнефть" "Башнефть-Новойл" | C133: 11 | D133: 129 | E133: Кабель АПвБВнг(A)-LS 3х150-10 | F133: М | G133: 421 | H133: 776.3 | I133: =H133*G133 -> 326822.3 | J133: 450063, г. Уфа, ПАО АНК "Башнефть" "Башнефть-Новойл"
A134: Кабель силовой с алюминиевой жилой | B134: ПАО АНК "Башнефть" "Башнефть-Новойл" | C134: 11 | D134: 130 | E134: Кабель АСБГ 3х120-1 | F134: М | G134: 170 | H134: 401 | I134: 68170 | J134: 450063, г. Уфа, ПАО АНК "Башнефть" "Башнефть-Новойл"
A135: Кабель силовой с алюминиевой жилой | B135: ПАО АНК "Башнефть" "Башнефть-Новойл" | C135: 11 | D135: 131 | E135: Кабель силовой АВБбШв 4х4-0,66 | F135: М | G135: 60 | H135: 40.1 | I135: 2406 | J135: 450063, г. Уфа, ПАО АНК "Башнефть" "Башнефть-Новойл"
A136: Кабель силовой с алюминиевой жилой | B136: ПАО АНК "Башнефть" "Башнефть-Новойл" | C136: 11 | D136: 132 | E136: Кабель силовой АВВГ 2х6-1,0 | F136: М | G136: 150 | H136: 10.6 | I136: 1590 | J136: 450063, г. Уфа, ПАО АНК "Башнефть" "Башнефть-Новойл"
A137: Кабель силовой с алюминиевой жилой | B137: ПАО АНК "Башнефть" "Башнефть-Новойл" | C137: 11 | D137: 133 | E137: Кабель силовой АВВГ 4х120-1,0 | F137: М | G137: 90 | H137: 194.5 | I137: 17505 | J137: 450063, г. Уфа, ПАО АНК "Башнефть" "Башнефть-Новойл"
A138: Кабель силовой с алюминиевой жилой | B138: ПАО АНК "Башнефть" "Башнефть-Новойл" | C138: 11 | D138: 134 | E138: Кабель силовой АВВГ 4х120-1,0 | F138: М | G138: 85 | H138: 194.5 | I138: 16532.5 | J138: 450063, г. Уфа, ПАО АНК "Башнефть" "Башнефть-Новойл"
A139: Кабель силовой с алюминиевой жилой | B139: ПАО АНК "Башнефть" "Башнефть-Новойл" | C139: 11 | D139: 135 | E139: Кабель силовой АВВГ 4х120-1,0 | F139: М | G139: 124 | H139: 194.5 | I139: 24118 | J139: 450063, г. Уфа, ПАО АНК "Башнефть" "Башнефть-Новойл"
A140: Кабель силовой с алюминиевой жилой | B140: ПАО АНК "Башнефть" "Башнефть-Новойл" | C140: 11 | D140: 136 | E140: Кабель силовой АВВГ 4х150-1,0 | F140: М | G140: 5 | H140: 421.3 | I140: 2106.5 | J140: 450063, г. Уфа, ПАО АНК "Башнефть" "Башнефть-Новойл"
A141: Кабель силовой с алюминиевой жилой | B141: ПАО АНК "Башнефть" "Башнефть-Новойл" | C141: 11 | D141: 137 | E141: Кабель силовой АВВГ 4х50-1,0 | F141: М | G141: 36 | H141: 140.3 | I141: 5050.8 | J141: 450063, г. Уфа, ПАО АНК "Башнефть" "Башнефть-Новойл"
A142: Кабель силовой с медной жилой | B142: ПАО АНК "Башнефть" "Башнефть-Новойл" | C142: 12 | D142: 138 | E142: Кабель ВБбШв 2х50-1 | F142: М | G142: 200 | H142: 608.6 | I142: 121720 | J142: 450063, г. Уфа, ПАО АНК "Башнефть" "Башнефть-Новойл"
A143: Кабель силовой с медной жилой | B143: ПАО АНК "Башнефть" "Башнефть-Новойл" | C143: 12 | D143: 139 | E143: Кабель ВБбШв 3х95-6 | F143: М | G143: 29 | H143: 817.8 | I143: 23716.2 | J143: 450063, г. Уфа, ПАО АНК "Башнефть" "Башнефть-Новойл"
A144: Кабель силовой с медной жилой | B144: ПАО АНК "Башнефть" "Башнефть-Новойл" | C144: 12 | D144: 140 | E144: Кабель ВБбШВз 3х1,5-1 | F144: М | G144: 20 | H144: 35.2 | I144: 704 | J144: 450063, г. Уфа, ПАО АНК "Башнефть" "Башнефть-Новойл"
A145: Кабель силовой с медной жилой | B145: ПАО АНК "Башнефть" "Башнефть-Новойл" | C145: 12 | D145: 141 | E145: Кабель ВБбШВз 3х4-0.66 | F145: М | G145: 11 | H145: 92.4 | I145: 1016.4 | J145: 450063, г. Уфа, ПАО АНК "Башнефть" "Башнефть-Новойл"
A146: Кабель силовой с медной жилой | B146: ПАО АНК "Башнефть" "Башнефть-Новойл" | C146: 12 | D146: 142 | E146: Кабель ВБбШвнг 3х10-0,66 | F146: М | G146: 22 | H146: 104.4 | I146: 2296.8 | J146: 450063, г. Уфа, ПАО АНК "Башнефть" "Башнефть-Новойл"
A147: Кабель силовой с медной жилой | B147: ПАО АНК "Башнефть" "Башнефть-Новойл" | C147: 12 | D147: 143 | E147: Кабель ВБбШвнг 3х16-0,66 | F147: М | G147: 40 | H147: 207.5 | I147: 8300 | J147: 450063, г. Уфа, ПАО АНК "Башнефть" "Башнефть-Новойл"
A148: Кабель силовой с медной жилой | B148: ПАО АНК "Башнефть" "Башнефть-Новойл" | C148: 12 | D148: 144 | E148: Кабель ВБбШвнг 4х1,5-0,66 | F148: М | G148: 13 | H148: 62.1 | I148: 807.3 | J148: 450063, г. Уфа, ПАО АНК "Башнефть" "Башнефть-Новойл"
A149: Кабель силовой с медной жилой | B149: ПАО АНК "Башнефть" "Башнефть-Новойл" | C149: 12 | D149: 145 | E149: Кабель ВБбШвнг(A) 3х10ок-1,0 | F149: М | G149: 174 | H149: 103.1 | I149: 17939.4 | J149: 450063, г. Уфа, ПАО АНК "Башнефть" "Башнефть-Новойл"
A150: Кабель силовой с медной жилой | B150: ПАО АНК "Башнефть" "Башнефть-Новойл" | C150: 12 | D150: 146 | E150: Кабель ВБбШвнг(A) 3х10ок-1,0 | F150: М | G150: 50 | H150: 97.9 | I150: 4895 | J150: 450063, г. Уфа, ПАО АНК "Башнефть" "Башнефть-Новойл"
A151: Кабель силовой с медной жилой | B151: ПАО АНК "Башнефть" "Башнефть-Новойл" | C151: 12 | D151: 147 | E151: Кабель ВБбШвнг-LS 2х2.5-0.66 | F151: М | G151: 18 | H151: 43.3 | I151: 779.4 | J151: 450063, г. Уфа, ПАО АНК "Башнефть" "Башнефть-Новойл"
A152: Кабель силовой с медной жилой | B152: ПАО АНК "Башнефть" "Башнефть-Новойл" | C152: 12 | D152: 148 | E152: Кабель ВБбШнг 4х10-0,66 | F152: М | G152: 10 | H152: 132.6 | I152: 1326 | J152: 450063, г. Уфа, ПАО АНК "Башнефть" "Башнефть-Новойл"
A153: Кабель силовой с медной жилой | B153: ПАО АНК "Башнефть" "Башнефть-Новойл" | C153: 12 | D153: 149 | E153: Кабель ВБШвнг(A) 3х1,5ок-0,66 | F153: М | G153: 7 | H153: 29.6 | I153: 207.2 | J153: 450063, г. Уфа, ПАО АНК "Башнефть" "Башнефть-Новойл"
A154: Кабель силовой с медной жилой | B154: ПАО АНК "Башнефть" "Башнефть-Новойл" | C154: 12 | D154: 150 | E154: Кабель ВБШвнг(A)-LS 3х16ок-1 | F154: М | G154: 8 | H154: 163 | I154: 1304 | J154: 450063, г. Уфа, ПАО АНК "Башнефть" "Башнефть-Новойл"
A155: Кабель силовой с медной жилой | B155: ПАО АНК "Башнефть" "Башнефть-Новойл" | C155: 12 | D155: 151 | E155: Кабель ВБШвнг(A)-LS 5х50мк(N,PE)-0,66 | F155: М | G155: 25 | H155: 1094.3 | I155: 27357.5 | J155: 450063, г. Уфа, ПАО АНК "Башнефть" "Башнефть-Новойл"
A156: Кабель силовой с медной жилой | B156: ПАО АНК "Башнефть" "Башнефть-Новойл" | C156: 12 | D156: 152 | E156: Кабель ВВГ 2х2,5-0,66 | F156: М | G156: 15 | H156: 21.9 | I156: 328.5 | J156: 450063, г. Уфа, ПАО АНК "Башнефть" "Башнефть-Новойл"
A157: Кабель силовой с медной жилой | B157: ПАО АНК "Башнефть" "Башнефть-Новойл" | C157: 12 | D157: 153 | E157: Кабель ВВГ 5х1,5-0,66 | F157: М | G157: 86 | H157: 33.1 | I157: 2846.6 | J157: 450063, г. Уфа, ПАО АНК "Башнефть" "Башнефть-Новойл"
A158: Кабель силовой с медной жилой | B158: ПАО АНК "Башнефть" "Башнефть-Новойл" | C158: 12 | D158: 154 | E158: Кабель ВВГзнг 2х1.5-0.66 | F158: М | G158: 15 | H158: 11.6 | I158: 174 | J158: 450063, г. Уфа, ПАО АНК "Башнефть" "Башнефть-Новойл"
A159: Кабель силовой с медной жилой | B159: ПАО АНК "Башнефть" "Башнефть-Новойл" | C159: 12 | D159: 155 | E159: Кабель ВВГзнг 2х4-0.66 | F159: М | G159: 160 | H159: 48.2 | I159: 7712 | J159: 450063, г. Уфа, ПАО АНК "Башнефть" "Башнефть-Новойл"
A160: Кабель силовой с медной жилой | B160: ПАО АНК "Башнефть" "Башнефть-Новойл" | C160: 12 | D160: 156 | E160: Кабель ВВГнг 1х1.5-0,66 | F160: М | G160: 15 | H160: 7.4 | I160: 111 | J160: 450063, г. Уфа, ПАО АНК "Башнефть" "Башнефть-Новойл"
A161: Кабель силовой с медной жилой | B161: ПАО АНК "Башнефть" "Башнефть-Новойл" | C161: 12 | D161: 157 | E161: Кабель ВВГнг 3х70-6 | F161: М | G161: 30 | H161: 604.2 | I161: 18126 | J161: 450063, г. Уфа, ПАО АНК "Башнефть" "Башнефть-Новойл"
A162: Кабель силовой с медной жилой | B162: ПАО АНК "Башнефть" "Башнефть-Новойл" | C162: 12 | D162: 158 | E162: Кабель ВВГнг 4х185-1 | F162: М | G162: 10 | H162: 2439.8 | I162: 24398 | J162: 450063, г. Уфа, ПАО АНК "Башнефть" "Башнефть-Новойл"
A163: Кабель силовой с медной жилой | B163: ПАО АНК "Башнефть" "Башнефть-Новойл" | C163: 12 | D163: 159 | E163: Кабель ВВГнг(A) 3х50-6 | F163: М | G163: 103 | H163: 428.4 | I163: 44125.2 | J163: 450063, г. Уфа, ПАО АНК "Башнефть" "Башнефть-Новойл"
A164: Кабель силовой с медной жилой | B164: ПАО АНК "Башнефть" "Башнефть-Новойл" | C164: 12 | D164: 160 | E164: Кабель ВВГнг(A)-LS 2х1,5-0,66 | F164: М | G164: 15 | H164: 11.6 | I164: 174 | J164: 450063, г. Уфа, ПАО АНК "Башнефть" "Башнефть-Новойл"
A165: Кабель силовой с медной жилой | B165: ПАО АНК "Башнефть" "Башнефть-Новойл" | C165: 12 | D165: 161 | E165: Кабель ВВГнг(A)-LS 4х1,5-0,66 | F165: М | G165: 2 | H165: 31.7 | I165: 63.4 | J165: 450063, г. Уфа, ПАО АНК "Башнефть" "Башнефть-Новойл"
A166: Кабель силовой с медной жилой | B166: ПАО АНК "Башнефть" "Башнефть-Новойл" | C166: 12 | D166: 162 | E166: Кабель ВВГнг-LS 2х2.5-1 | F166: М | G166: 10 | H166: 14.8 | I166: 148 | J166: 450063, г. Уфа, ПАО АНК "Башнефть" "Башнефть-Новойл"
A167: Кабель силовой с медной жилой | B167: ПАО АНК "Башнефть" "Башнефть-Новойл" | C167: 12 | D167: 163 | E167: Кабель ВВГнг-LS 3х16-0,66 | F167: М | G167: 20 | H167: 154.4 | I167: 3088 | J167: 450063, г. Уфа, ПАО АНК "Башнефть" "Башнефть-Новойл"
A168: Кабель силовой с медной жилой | B168: ПАО АНК "Башнефть" "Башнефть-Новойл" | C168: 12 | D168: 164 | E168: Кабель ВВГнг-LS 4х120-1 | F168: М | G168: 10 | H168: 1491.2 | I168: 14912 | J168: 450063, г. Уфа, ПАО АНК "Башнефть" "Башнефть-Новойл"
A169: Кабель силовой с медной жилой | B169: ПАО АНК "Башнефть" "Башнефть-Новойл" | C169: 12 | D169: 165 | E169: Кабель ВВГнг-LS 5х4-0,66 | F169: М | G169: 9 | H169: 93.7 | I169: 843.3 | J169: 450063, г. Уфа, ПАО АНК "Башнефть" "Башнефть-Новойл"
A170: Кабель силовой с медной жилой | B170: ПАО АНК "Башнефть" "Башнефть-Новойл" | C170: 12 | D170: 166 | E170: Кабель ВВГнг-LS 5х6-0,66 | F170: М | G170: 10 | H170: 142 | I170: 1420 | J170: 450063, г. Уфа, ПАО АНК "Башнефть" "Башнефть-Новойл"
A171: Кабель силовой с медной жилой | B171: ПАО АНК "Башнефть" "Башнефть-Новойл" | C171: 12 | D171: 167 | E171: Кабель КУСИЛнг-HF ПБ 4х2,5ок-1 | F171: М | G171: 24 | H171: 383.3 | I171: 9199.2 | J171: 450063, г. Уфа, ПАО АНК "Башнефть" "Башнефть-Новойл"
A172: Кабель силовой с медной жилой | B172: ПАО АНК "Башнефть" "Башнефть-Новойл" | C172: 12 | D172: 168 | E172: Кабель КУСИЛнг-HF ПБ 5х35ок-1 | F172: М | G172: 46 | H172: 5731.6 | I172: 263653.6 | J172: 450063, г. Уфа, ПАО АНК "Башнефть" "Башнефть-Новойл"
A173: Кабель силовой с медной жилой | B173: ПАО АНК "Башнефть" "Башнефть-Новойл" | C173: 12 | D173: 169 | E173: Кабель ПвБВнг(A)-LS 3х240-10 | F173: М | G173: 195 | H173: 2091.2 | I173: 407784 | J173: 450063, г. Уфа, ПАО АНК "Башнефть" "Башнефть-Новойл"
A174: Кабель силовой с медной жилой | B174: ПАО АНК "Башнефть" "Башнефть-Новойл" | C174: 12 | D174: 170 | E174: Кабель ПвБВнг(A)-LS 3х240-10 | F174: М | G174: 20 | H174: 2091.2 | I174: 41824 | J174: 450063, г. Уфа, ПАО АНК "Башнефть" "Башнефть-Новойл"
A175: Кабель силовой с медной жилой | B175: ПАО АНК "Башнефть" "Башнефть-Новойл" | C175: 12 | D175: 171 | E175: Кабель ППГнг-HF 2х1,5-0,66 | F175: М | G175: 225 | H175: 134.3 | I175: 30217.5 | J175: 450063, г. Уфа, ПАО АНК "Башнефть" "Башнефть-Новойл"
A176: Кабель силовой с медной жилой | B176: ПАО АНК "Башнефть" "Башнефть-Новойл" | C176: 12 | D176: 172 | E176: Кабель ППГнг-HF 3х4-0,66 | F176: М | G176: 40 | H176: 375.4 | I176: 15016 | J176: 450063, г. Уфа, ПАО АНК "Башнефть" "Башнефть-Новойл"
A177: Кабель силовой с медной жилой | B177: ПАО АНК "Башнефть" "Башнефть-Новойл" | C177: 12 | D177: 173 | E177: Кабель ППГнг-HF 5х1.5-0,66 | F177: М | G177: 55 | H177: 101.4 | I177: 5577 | J177: 450063, г. Уфа, ПАО АНК "Башнефть" "Башнефть-Новойл"
A178: Кабель силовой с медной жилой | B178: ПАО АНК "Башнефть" "Башнефть-Новойл" | C178: 12 | D178: 174 | E178: Кабель ППГнг-HF 5х1.5-0,66 | F178: М | G178: 90 | H178: 97 | I178: 8730 | J178: 450063, г. Уфа, ПАО АНК "Башнефть" "Башнефть-Новойл"
A179: Кабель силовой с медной жилой | B179: ПАО АНК "Башнефть" "Башнефть-Новойл" | C179: 12 | D179: 175 | E179: Кабель ППГнг-HF 5х50-0,66 | F179: М | G179: 140 | H179: 6768.8 | I179: 947632 | J179: 450063, г. Уфа, ПАО АНК "Башнефть" "Башнефть-Новойл"
A180: Кабель силовой с медной жилой | B180: ПАО АНК "Башнефть" "Башнефть-Новойл" | C180: 12 | D180: 176 | E180: Кабель ППГнг-HF 5х50-1 | F180: М | G180: 150 | H180: 1608.9 | I180: 241335 | J180: 450063, г. Уфа, ПАО АНК "Башнефть" "Башнефть-Новойл"
A181: Кабель силовой с медной жилой | B181: ПАО АНК "Башнефть" "Башнефть-Новойл" | C181: 12 | D181: 177 | E181: Кабель ППГнг-HF 5х6-0,66 | F181: М | G181: 25 | H181: 546 | I181: 13650 | J181: 450063, г. Уфа, ПАО АНК "Башнефть" "Башнефть-Новойл"
A182: Кабель силовой с медной жилой | B182: ПАО АНК "Башнефть" "Башнефть-Новойл" | C182: 12 | D182: 178 | E182: Кабель РвКПнг(A)-HF 3х185/25-6 | F182: М | G182: 51 | H182: 3347.3 | I182: 170712.3 | J182: 450063, г. Уфа, ПАО АНК "Башнефть" "Башнефть-Новойл"
A183: Кабель силовой с медной жилой | B183: ПАО АНК "Башнефть" "Башнефть-Новойл" | C183: 12 | D183: 179 | E183: Кабель силовой ВБбШв 3х35-6,0 | F183: М | G183: 56 | H183: 673.7 | I183: 37727.2 | J183: 450063, г. Уфа, ПАО АНК "Башнефть" "Башнефть-Новойл"
A184: Кабель силовой с медной жилой | B184: ПАО АНК "Башнефть" "Башнефть-Новойл" | C184: 12 | D184: 180 | E184: Кабель силовой ВБбШв 3х35-6,0 | F184: М | G184: 50 | H184: 673.7 | I184: 33685 | J184: 450063, г. Уфа, ПАО АНК "Башнефть" "Башнефть-Новойл"
A185: Кабель силовой с медной жилой | B185: ПАО АНК "Башнефть" "Башнефть-Новойл" | C185: 12 | D185: 181 | E185: Кабель силовой ВВГ 4х70-1,0 | F185: М | G185: 16 | H185: 921.1 | I185: 14737.6 | J185: 450063, г. Уфа, ПАО АНК "Башнефть" "Башнефть-Новойл"
A186: Кабель силовой с медной жилой | B186: ПАО АНК "Башнефть" "Башнефть-Новойл" | C186: 12 | D186: 182 | E186: Кабель силовой ВВГз 2х2,5-0,66 | F186: М | G186: 20 | H186: 21.9 | I186: 438 | J186: 450063, г. Уфа, ПАО АНК "Башнефть" "Башнефть-Новойл"
A187: Кабель силовой с медной жилой | B187: ПАО АНК "Башнефть" "Башнефть-Новойл" | C187: 12 | D187: 183 | E187: Кабель силовой ВВГз 2х2,5-0,66 | F187: М | G187: 693 | H187: 21.9 | I187: 15176.7 | J187: 450063, г. Уфа, ПАО АНК "Башнефть" "Башнефть-Новойл"
A188: Кабель силовой с медной жилой | B188: ПАО АНК "Башнефть" "Башнефть-Новойл" | C188: 12 | D188: 184 | E188: Кабель силовой ВВГз 4х10-0,66 | F188: М | G188: 11 | H188: 116.2 | I188: 1278.2 | J188: 450063, г. Уфа, ПАО АНК "Башнефть" "Башнефть-Новойл"
A189: Кабель силовой с медной жилой | B189: ПАО АНК "Башнефть" "Башнефть-Новойл" | C189: 12 | D189: 185 | E189: Кабель силовой ВВГз 5х25(ож)-0,66 | F189: М | G189: 15 | H189: 55.7 | I189: 835.5 | J189: 450063, г. Уфа, ПАО АНК "Башнефть" "Башнефть-Новойл"
A190: Кабель, провод монтажный | B190: ПАО АНК "Башнефть" "Башнефть-Новойл" | C190: 13 | D190: 186 | E190: Кабель КПМВЭБлВмнг(A)-LS 2х2х1,5 | F190: М | G190: 50 | H190: 190.3 | I190: 9515 | J190: 450063, г. Уфа, ПАО АНК "Башнефть" "Башнефть-Новойл"
A191: Кабель, провод монтажный | B191: ПАО АНК "Башнефть" "Башнефть-Новойл" | C191: 13 | D191: 187 | E191: Кабель КПМВЭВГ 5х2х1,5 | F191: М | G191: 665 | H191: 118.5 | I191: 78802.5 | J191: 450063, г. Уфа, ПАО АНК "Башнефть" "Башнефть-Новойл"
A192: Кабель, провод монтажный | B192: ПАО АНК "Башнефть" "Башнефть-Новойл" | C192: 13 | D192: 188 | E192: Кабель КПМВЭВГ 5х2х1,5 | F192: М | G192: 390 | H192: 118.5 | I192: 46215 | J192: 450063, г. Уфа, ПАО АНК "Башнефть" "Башнефть-Новойл"
A193: Кабель, провод монтажный | B193: ПАО АНК "Башнефть" "Башнефть-Новойл" | C193: 13 | D193: 189 | E193: Кабель КПМВЭВГ 7х2х1,5 | F193: М | G193: 260 | H193: 170.3 | I193: 44278 | J193: 450063, г. Уфа, ПАО АНК "Башнефть" "Башнефть-Новойл"
A194: Кабель, провод монтажный | B194: ПАО АНК "Башнефть" "Башнефть-Новойл" | C194: 13 | D194: 190 | E194: Кабель КПМВЭВм-в-знг(А)-LS 4х2х0,2 | F194: М | G194: 55 | H194: 106.5 | I194: 5857.5 | J194: 450063, г. Уфа, ПАО АНК "Башнефть" "Башнефть-Новойл"
A195: Кабель, провод монтажный | B195: ПАО АНК "Башнефть" "Башнефть-Новойл" | C195: 13 | D195: 191 | E195: Кабель КПМВЭВм-в-знг(А)-LS 4х2х0,2 | F195: М | G195: 420 | H195: 106.5 | I195: 44730 | J195: 450063, г. Уфа, ПАО АНК "Башнефть" "Башнефть-Новойл"
A196: Кабель, провод монтажный | B196: ПАО АНК "Башнефть" "Башнефть-Новойл" | C196: 13 | D196: 192 | E196: Кабель КПМВЭВм-в-знг(А)-LS 4х2х0,2 | F196: М | G196: 55 | H196: 106.5 | I196: 5857.5 | J196: 450063, г. Уфа, ПАО АНК "Башнефть" "Башнефть-Новойл"
A197: Кабель, провод монтажный | B197: ПАО АНК "Башнефть" "Башнефть-Новойл" | C197: 13 | D197: 193 | E197: Кабель КПМВЭКВГ-внг(А)-LS-ХЛ 2х2х1,0 | F197: М | G197: 45 | H197: 84 | I197: =H197*G197 -> 3780 | J197: 450063, г. Уфа, ПАО АНК "Башнефть" "Башнефть-Новойл"
A198: Кабель, провод монтажный | B198: ПАО АНК "Башнефть" "Башнефть-Новойл" | C198: 13 | D198: 194 | E198: Кабель КПМСПГм-взнг(А)-FRHF 1х2х1 | F198: М | G198: 60 | H198: 111.4 | I198: 6684 | J198: 450063, г. Уфа, ПАО АНК "Башнефть" "Башнефть-Новойл"
A199: Кабель, провод монтажный | B199: ПАО АНК "Башнефть" "Башнефть-Новойл" | C199: 13 | D199: 195 | E199: Кабель КПМСПГм-внг(А)-FRHF 1х2х0,5 | F199: М | G199: 58 | H199: 52.6 | I199: 3050.8 | J199: 450063, г. Уфа, ПАО АНК "Башнефть" "Башнефть-Новойл"
A200: Кабель, провод монтажный | B200: ПАО АНК "Башнефть" "Башнефть-Новойл" | C200: 13 | D200: 196 | E200: Кабель КПМСПГм-внг(А)-FRHF 1х2х1 | F200: М | G200: 203 | H200: 64.7 | I200: 13134.1 | J200: 450063, г. Уфа, ПАО АНК "Башнефть" "Башнефть-Новойл"
A201: Кабель, провод монтажный | B201: ПАО АНК "Башнефть" "Башнефть-Новойл" | C201: 13 | D201: 197 | E201: Кабель КПМСПГм-внг(А)-FRHF 1х2х1,5 | F201: М | G201: 515 | H201: 88.4 | I201: 45526 | J201: 450063, г. Уфа, ПАО АНК "Башнефть" "Башнефть-Новойл"
... 1386 more rows

Sheet Лист1
